[Event "44th Chess Olympiad Open 2022"]
[Site "Chennai"]
[Date "2022.08.09"]
[Round "11.30"]
[White "Parligras, Mircea-Emilian"]
[Black "De Silva, L M S T"]
[Result "1/2-1/2"]
[ECO "E36"]
[WhiteElo "2576"]
[BlackElo "2212"]
[Annotator "TA"]
[PlyCount "65"]
[EventDate "2022.07.29"]
[EventType "team-tourn"]
[EventCountry "IND"]
[SourceTitle "playchess.com"]
[Source "ChessBase"]
[SourceQuality "1"]
[WhiteTeam "Romania"]
[BlackTeam "Sri Lanka"]
[WhiteTeamCountry "ROU"]
[BlackTeamCountry "SRI"]
[TimeControl "40/5400+30:1800+30"]

{[%evp 15,65,11,18,24,23,14,22,19,40,45,68,84,66,23,28,22,25,24,24,30,30,16,17,18,18,0,0,0,0,0,0,-1,0,0,0,0,0,0,0,0,0,0,0,0,0,0,0,0,0,0,0,0]} 1. d4 {[%emt 0:00:07]} Nf6 {[%emt 0:00:07]} 2. c4 {[%emt 0:00:03]} e6 {[%emt 0:00:06]} 3. Nc3 {[%emt 0:00:08]} Bb4 {[%emt 0:00:08]} 4. Qc2 {[%emt 0:00:07]} O-O {[%emt 0:00:26]} 5. a3 {[%emt 0:00:10]} Bxc3+ {[%emt 0:00:34]} 6. Qxc3 {[%emt 0:00:05]} d5 {[%emt 0:00:26]} 7. Nf3 {[%emt 0:00:25]} dxc4 {[%emt 0:00:29]} 8. Qxc4 {[%emt 0:00:06]} b6 {[%emt 0:00:51]} 9. Bg5 {[%emt 0:00:32] E36: Nimzo-Indian: Classical: 4...d5 5 a3.} Bb7 {[%emt 0:00:50]} 10. Rd1 {[%emt 0:14:57]} Nbd7 {[%emt 0:07:57]} 11. Ne5 {[%emt 0:01:06]} Bd5 {[%emt 0:05:28] [#]} 12. Qc2 $146 {[%emt 0:04:05]} ({Predecessor:} 12. Qd3 Qe8 13. f3 Bb7 14. Nxd7 Nxd7 15. e3 c5 16. Be2 f6 17. Bf4 e5 18. dxe5 Nxe5 {½-½ (46) Ohlendorf,U (1870)-Siemes,R (2034) GER email 2011}) 12... c5 {[%emt 0:06:40]} 13. Nxd7 $1 {[%emt 0:00:19] White is more active.} Qxd7 {[%emt 0:00:11]} 14. Bxf6 {[%emt 0:00:15]} (14. dxc5 $5 {[%cal Rg5f6]} Qc7 15. f3 $14) 14... gxf6 {[%emt 0:00:15]} 15. e4 {[%emt 0:00:29]} Bb7 {[%emt 0:01:24]} 16. dxc5 {[%emt 0:00:08]} Qc6 {[%emt 0:01:54]} 17. f3 {[%emt 0:06:46]} Rac8 {[%emt 0:06:53]} 18. Bd3 {[%emt 0:08:23]} Rfd8 {[%emt 0:04:07] The position is equal.} 19. O-O {[%emt 0:04:46][%cal Oc5b6]} bxc5 {[%emt 0:04:08]} 20. e5 {[%emt 0:06:41]} f5 {[%emt 0:03:20]} 21. Bc4 {[%emt 0:04:51]} Qc7 {[%emt 0:04:31]} 22. Qc1 {[%emt 0:12:58]} Rd4 {[%emt 0:01:53]} 23. Rfe1 {[%emt 0:09:01]} Qe7 {[%emt 0:05:19]} 24. b3 {[%emt 0:00:04]} Rcd8 {[%emt 0:01:20]} 25. Rxd4 {[%emt 0:00:36]} Rxd4 {[%emt 0:01:17]} 26. Rd1 {[%emt 0:01:17]} Qd8 {[%emt 0:00:34]} 27. Rxd4 {[%emt 0:04:00]} Qxd4+ $11 {[%emt 0:00:16][%mdl 4096] Endgame KQB-KQB} 28. Kf1 {[%emt 0:00:04]} Qxe5 {[%emt 0:06:14]} 29. Qg5+ {[%emt 0:00:05]} Kf8 {[%emt 0:00:13]} 30. Qd8+ {[%emt 0:00:06]} Kg7 {[%emt 0:00:04]} 31. Qg5+ {[%emt 0:00:20]} Kf8 {[%emt 0:00:06]} 32. Qd8+ {[%emt 0:00:04]} Kg7 {[%emt 0:00:03]} 33. Qg5+ {[%emt 0:00:41] Weighted Error Value: White=0.03 (flawless) /Black=0.03 (flawless)} 1/2-1/2

[Event "44th Chess Olympiad Open 2022"]
[Site "Chennai"]
[Date "2022.08.09"]
[Round "11.30"]
[White "Liyanage, Ranindu Dilshan"]
[Black "Lupulescu, Constantin"]
[Result "1/2-1/2"]
[ECO "B66"]
[WhiteElo "2286"]
[BlackElo "2628"]
[Annotator "TA"]
[PlyCount "120"]
[EventDate "2022.07.29"]
[EventType "team-tourn"]
[EventCountry "IND"]
[SourceTitle "playchess.com"]
[Source "ChessBase"]
[SourceQuality "1"]
[WhiteTeam "Sri Lanka"]
[BlackTeam "Romania"]
[WhiteTeamCountry "SRI"]
[BlackTeamCountry "ROU"]
[TimeControl "40/5400+30:1800+30"]

{[%evp 23,119,24,24,21,18,18,19,0,29,29,29,29,36,22,30,29,29,24,24,24,22,22,31,0,0,0,14,14,14,15,15,15,15,15,15,15,15,15,22,0,0,0,0,0,0,0,0,-7,-7,-7,-7,-7,0,-10,0,-10,0,0,0,0,0,0,0,0,0,0,0,0,0,-8,-8,-8,-8,-8,-7,-8,-8,-8,-8,-8,-8,-8,-8,-8,0,0,0,0,0,0,0,0,0,0,0,0,0,0]} 1. e4 {[%emt 0:00:07]} c5 {[%emt 0:00:02]} 2. Nf3 {[%emt 0:00:10]} d6 {[%emt 0:00:03]} 3. d4 {[%emt 0:00:10]} cxd4 {[%emt 0:00:03]} 4. Nxd4 {[%emt 0:00:09]} Nf6 {[%emt 0:00:03]} 5. Nc3 {[%emt 0:00:08]} Nc6 {[%emt 0:00:06]} 6. Bg5 {[%emt 0:00:31]} Bd7 {[%emt 0:00:06]} 7. Qd2 {[%emt 0:01:04]} a6 {[%emt 0:00:09]} 8. O-O-O {[%emt 0:00:22]} e6 {[%emt 0:00:04]} 9. Nxc6 {[%emt 0:00:24]} Bxc6 {[%emt 0:00:22]} 10. f3 {[%emt 0:00:05]} h6 {[%emt 0:05:03]} 11. Bf4 {[%emt 0:00:06]} d5 {[%emt 0:00:22]} 12. Qe1 {[%emt 0:00:15]} Bb4 {[%emt 0:00:55]} 13. a3 {[%emt 0:01:09] B66: Sicilian: Richter-Rauzer: 7...a6 8 0-0-0 h6.} Bxc3 {[%emt 0:00:55] is the new trend.} 14. Qxc3 {[%emt 0:00:07]} O-O {[%emt 0:00:12]} 15. Be5 {[%emt 0:00:22]} Rc8 {[%emt 0:10:53] [#] And now ...Ba4 would win.} (15... Nd7 $5 {[%cal Ra8c8]}) 16. Bxf6 {[%emt 0:01:10]} Qxf6 {[%emt 0:00:14]} 17. Qxf6 {[%emt 0:00:08]} gxf6 {[%emt 0:00:02]} 18. exd5 {[%emt 0:00:15]} Bxd5 {[%emt 0:00:04]} 19. Rd4 {[%emt 0:00:16]} Rfd8 {[%emt 0:14:57]} 20. Bd3 {[%emt 0:05:25]} Bc6 {[%emt 0:00:53]} 21. Rxd8+ {[%emt 0:11:33]} Rxd8 $11 {[%emt 0:00:03][%mdl 4096] Endgame KRB-KRB} 22. Rd1 {[%emt 0:00:31][%cal Od3h7] [#] Strongly threatening Bh7+!} f5 {[%emt 0:09:25]} 23. f4 {[%emt 0:15:39] [#]} Kg7 $146 {[%emt 0:00:00] The position is equal.} (23... Bxg2 $2 24. Rg1 $18) ({Predecessor:} 23... Kf8 24. g3 Ke7 25. Re1 Kf6 26. Re3 h5 27. h4 Kg6 28. b3 Re8 29. Kd2 f6 {½-½ (44) Cleto,F (2503)-Calhau,E (2441) ICCF email 2005}) 24. g3 {[%emt 0:01:28]} Kf6 {[%emt 0:00:00]} 25. Be2 {[%emt 0:01:32]} Rg8 {[%emt 0:00:00][%cal Oh6h5]} 26. Bh5 {[%emt 0:01:54]} Ke7 {[%emt 0:01:02]} 27. Kd2 {[%emt 0:04:55]} f6 {[%emt 0:02:44]} 28. Ke3 {[%emt 0:02:04]} e5 {[%emt 0:00:25]} 29. Rd2 {[%emt 0:06:05]} a5 {[%emt 0:12:51]} 30. Be2 {[%emt 0:06:05]} Rc8 {[%emt 0:02:18]} 31. g4 {[%emt 0:16:21]} fxg4 {[%emt 0:04:09]} 32. Bxg4 {[%emt 0:00:06]} Rg8 {[%emt 0:00:38]} 33. Bf3 {[%emt 0:00:27]} Bxf3 {[%emt 0:03:17]} 34. Kxf3 {[%emt 0:00:06] KR-KR} Ke6 {[%emt 0:00:02] Against Rd5} 35. fxe5 {[%emt 0:00:54]} fxe5 {[%emt 0:00:08]} 36. a4 {[%emt 0:02:53]} Rf8+ {[%emt 0:03:28]} 37. Ke3 {[%emt 0:00:41]} Rf4 {[%emt 0:00:27]} 38. Rg2 {[%emt 0:04:12]} Rh4 {[%emt 0:06:14]} 39. Rg7 {[%emt 0:01:44]} Rxh2 {[%emt 0:04:23]} 40. Rxb7 {[%emt 0:00:10]} h5 {[%emt 0:06:57]} 41. b4 {[%emt 0:36:33]} Rxc2 {[%emt 0:35:06]} 42. bxa5 {[%emt 0:00:32]} Rc3+ {[%emt 0:01:50]} 43. Kd2 {[%emt 0:00:51]} Rc4 {[%emt 0:00:06]} 44. Rh7 {[%emt 0:00:37]} Rxa4 {[%emt 0:00:41]} 45. Rxh5 {[%emt 0:00:08]} Kd5 {[%emt 0:00:36]} 46. Rh3 {[%emt 0:01:02]} Ra2+ {[%emt 0:00:07]} 47. Ke1 {[%emt 0:00:12]} Rxa5 {[%emt 0:00:12]} 48. Rb3 {[%emt 0:00:35]} Kc4 {[%emt 0:00:07]} 49. Rh3 {[%emt 0:00:26]} e4 {[%emt 0:00:19]} 50. Rg3 {[%emt 0:00:29]} Kd4 {[%emt 0:00:05]} 51. Rh3 {[%emt 0:00:20]} Ra2 {[%emt 0:00:21]} 52. Rg3 {[%emt 0:00:11]} Rc2 {[%emt 0:00:19]} 53. Rh3 {[%emt 0:00:31]} Rc3 {[%emt 0:00:16]} 54. Rxc3 {[%emt 0:00:15]} Kxc3 {[%emt 0:00:03] KP-K} 55. Ke2 {[%emt 0:00:06]} Kd4 {[%emt 0:00:02][%cal Bc3d4,Bd4e4,Be4d3,Bd3e3][%mdl 32]} 56. Kd2 {[%emt 0:00:04]} e3+ {[%emt 0:00:05][%cal Be4e3,Be3e2][%mdl 32]} 57. Ke2 {[%emt 0:00:03]} Ke4 {[%emt 0:00:04]} 58. Ke1 {[%emt 0:00:05]} Kd3 {[%emt 0:00:04] ( -> ...e2)} 59. Kd1 {[%emt 0:00:03]} e2+ {[%emt 0:00:03]} 60. Ke1 {[%emt 0:00:03]} Ke3 {[%emt 0:00:37] Weighted Error Value: White=0.03 (flawless) /Black=0.02 (flawless)} 1/2-1/2

[Event "44th Chess Olympiad Open 2022"]
[Site "Chennai"]
[Date "2022.08.09"]
[Round "11.30"]
[White "Nabil Nazar, Mohamed"]
[Black "Gavrilescu, David"]
[Result "0-1"]
[ECO "B13"]
[WhiteElo "1845"]
[BlackElo "2525"]
[Annotator "RC"]
[PlyCount "58"]
[EventDate "2022.07.29"]
[EventType "team-tourn"]
[EventCountry "IND"]
[SourceTitle "playchess.com"]
[Source "ChessBase"]
[SourceQuality "1"]
[WhiteTeam "Sri Lanka"]
[BlackTeam "Romania"]
[WhiteTeamCountry "SRI"]
[BlackTeamCountry "ROU"]
[TimeControl "40/5400+30:1800+30"]

1. d4 {[%emt 0:00:04]} d5 {[%emt 0:00:25]} 2. Bf4 {[%emt 0:00:15]} c5 {[%emt 0:00:32]} 3. e3 {[%emt 0:01:00]} cxd4 {[%emt 0:01:29]} 4. exd4 {[%emt 0:00:12]} Nc6 {[%emt 0:00:05]} 5. c3 {[%emt 0:00:27]} Bf5 {[%emt 0:01:06]} 6. Nd2 {[%emt 0:01:28]} e6 {[%emt 0:00:10]} 7. Qb3 {[%emt 0:02:29]} Qd7 {[%emt 0:00:10]} 8. Ngf3 {[%emt 0:00:25]} f6 {[%emt 0:00:06]} 9. Be2 {[%emt 0:01:46]} g5 {[%emt 0:00:20]} 10. Bg3 {[%emt 0:01:17]} h5 {[%emt 0:00:05]} 11. h4 {[%emt 0:04:20]} g4 {[%emt 0:00:12]} 12. Nh2 {[%emt 0:00:33]} Nge7 {[%emt 0:03:10]} 13. Nhf1 {[%emt 0:02:44]} Bh6 {[%emt 0:00:54]} 14. Ne3 {[%emt 0:01:56]} Bg6 {[%emt 0:00:21]} 15. Nc2 {[%emt 0:08:55]} Nf5 {[%emt 0:05:46]} 16. Nb4 {[%emt 0:01:29]} Nxg3 {[%emt 0:01:02]} 17. fxg3 {[%emt 0:00:46]} Qd6 {[%emt 0:00:14]} 18. Nxc6 {[%emt 0:01:21]} Qxg3+ {[%emt 0:04:30]} 19. Kd1 {[%emt 0:00:32]} bxc6 {[%emt 0:00:05]} 20. Qb7 {[%emt 0:04:19]} O-O {[%emt 0:00:07]} 21. Qxc6 {[%emt 0:00:19]} Qe3 {[%emt 0:00:58]} 22. Nf1 {[%emt 0:00:49]} Qe4 {[%emt 0:00:21]} 23. Ke1 {[%emt 0:05:09]} Rab8 {[%emt 0:32:23]} 24. b3 {[%emt 0:33:20]} Rbc8 {[%emt 0:00:00]} 25. Qd6 {[%emt 0:04:18]} Rxc3 {[%emt 0:00:00]} 26. Ng3 {[%emt 0:00:36]} Qxg2 {[%emt 0:00:00]} 27. Qxe6+ {[%emt 0:02:54]} Bf7 {[%emt 0:00:00]} 28. Qxf6 {[%emt 0:03:54]} Qxg3+ {[%emt 0:00:00]} 29. Kd1 {[%emt 0:00:11]} Qe3 {[%emt 0:00:00]} 0-1

[Event "44th Chess Olympiad Open 2022"]
[Site "Chennai"]
[Date "2022.08.09"]
[Round "11.31"]
[White "Avila Pavas, Santiago"]
[Black "Palomo, Franklin Annervys"]
[Result "1-0"]
[ECO "B41"]
[WhiteElo "2453"]
[BlackElo "2324"]
[Annotator "RC"]
[PlyCount "75"]
[EventDate "2022.07.29"]
[EventType "team-tourn"]
[EventCountry "IND"]
[SourceTitle "playchess.com"]
[Source "ChessBase"]
[SourceQuality "1"]
[WhiteTeam "Colombia"]
[BlackTeam "Venezuela"]
[WhiteTeamCountry "COL"]
[BlackTeamCountry "VEN"]
[TimeControl "40/5400+30:1800+30"]

1. e4 {[%emt 0:00:26]} c5 {[%emt 0:00:24]} 2. Nf3 {[%emt 0:00:00]} e6 {[%emt 0:00:29]} 3. d4 {[%emt 0:00:00]} cxd4 {[%emt 0:00:00]} 4. Nxd4 {[%emt 0:00:00]} a6 {[%emt 0:00:13]} 5. c4 {[%emt 0:05:03]} Nf6 {[%emt 0:00:58]} 6. Nc3 {[%emt 0:00:06]} Qc7 {[%emt 0:01:21]} 7. a3 {[%emt 0:00:47]} b6 {[%emt 0:02:48]} 8. Be3 {[%emt 0:00:27]} Bb7 {[%emt 0:00:09]} 9. f3 {[%emt 0:00:08]} d6 {[%emt 0:01:00]} 10. Be2 {[%emt 0:00:21]} Be7 {[%emt 0:00:11]} 11. O-O {[%emt 0:01:05]} Nbd7 {[%emt 0:00:14]} 12. Qd2 {[%emt 0:03:26]} O-O {[%emt 0:00:32]} 13. Rac1 {[%emt 0:00:34]} Rac8 {[%emt 0:00:17]} 14. b4 {[%emt 0:00:48]} Qb8 {[%emt 0:00:38]} 15. Rfd1 {[%emt 0:00:08]} Bd8 {[%emt 0:03:14]} 16. Kh1 {[%emt 0:07:58]} Bc7 {[%emt 0:03:54]} 17. Nb3 {[%emt 0:19:53]} Rfe8 {[%emt 0:02:19]} 18. Bf4 {[%emt 0:04:01]} Ne5 {[%emt 0:12:49]} 19. Bxe5 {[%emt 0:01:29]} dxe5 {[%emt 0:00:03]} 20. Qe1 {[%emt 0:04:25]} Red8 {[%emt 0:05:11]} 21. c5 {[%emt 0:06:34]} Rxd1 {[%emt 0:02:12]} 22. Qxd1 {[%emt 0:00:42]} b5 {[%emt 0:03:37]} 23. Qf1 {[%emt 0:09:32]} Bc6 {[%emt 0:11:37]} 24. Na1 {[%emt 0:02:25]} Nh5 {[%emt 0:05:06]} 25. g3 {[%emt 0:17:59]} Qb7 {[%emt 0:07:40]} 26. a4 {[%emt 0:00:32]} Rb8 {[%emt 0:00:46]} 27. axb5 {[%emt 0:02:37]} axb5 {[%emt 0:00:04]} 28. Qh3 {[%emt 0:01:38]} g6 {[%emt 0:00:12]} 29. Nc2 {[%emt 0:11:37]} f5 {[%emt 0:11:39]} 30. Na3 {[%emt 0:03:41]} fxe4 {[%emt 0:03:59]} 31. Qxe6+ {[%emt 0:00:00]} Kh8 {[%emt 0:05:44]} 32. Bxb5 {[%emt 0:00:00]} Bxb5 {[%emt 0:00:12]} 33. Naxb5 {[%emt 0:00:00]} exf3 {[%emt 0:00:34]} 34. Qd7 {[%emt 0:00:00]} f2+ {[%emt 0:16:40]} 35. c6 {[%emt 0:00:00]} Qa6 {[%emt 0:00:21]} 36. Qxc7 {[%emt 0:00:00]} Rxb5 {[%emt 0:00:35]} 37. Nxb5 {[%emt 0:00:00]} Qxb5 {[%emt 0:00:23]} 38. Qc8+ {[%emt 0:00:00]} 1-0

[Event "44th Chess Olympiad Open 2022"]
[Site "Chennai"]
[Date "2022.08.09"]
[Round "11.31"]
[White "Arenas, David"]
[Black "Castro Silva, Moises Antonio"]
[Result "1-0"]
[ECO "A35"]
[WhiteElo "2426"]
[BlackElo "2237"]
[Annotator "RC"]
[PlyCount "97"]
[EventDate "2022.07.29"]
[EventType "team-tourn"]
[EventCountry "IND"]
[SourceTitle "playchess.com"]
[Source "ChessBase"]
[SourceQuality "1"]
[WhiteTeam "Colombia"]
[BlackTeam "Venezuela"]
[WhiteTeamCountry "COL"]
[BlackTeamCountry "VEN"]
[TimeControl "40/5400+30:1800+30"]

1. c4 {[%emt 0:00:07]} c5 {[%emt 0:00:13]} 2. Nc3 {[%emt 0:00:22]} Nc6 {[%emt 0:00:12]} 3. Nf3 {[%emt 0:00:17]} g6 {[%emt 0:01:51]} 4. e3 {[%emt 0:01:06]} Nf6 {[%emt 0:00:07]} 5. d4 {[%emt 0:00:28]} cxd4 {[%emt 0:00:50]} 6. exd4 {[%emt 0:00:18]} d5 {[%emt 0:00:25]} 7. cxd5 {[%emt 0:00:15]} Nxd5 {[%emt 0:00:11]} 8. Qb3 {[%emt 0:00:06]} Nxc3 {[%emt 0:01:28]} 9. Bc4 {[%emt 0:00:15]} e6 {[%emt 0:05:12]} 10. bxc3 {[%emt 0:03:18]} Bg7 {[%emt 0:09:07]} 11. Ba3 {[%emt 0:03:24]} Ne7 {[%emt 0:15:59]} 12. Qb5+ {[%emt 0:23:38]} Qd7 {[%emt 0:02:10]} 13. Ne5 {[%emt 0:00:56]} Qxb5 {[%emt 0:00:15]} 14. Bxb5+ {[%emt 0:00:05]} Kf8 {[%emt 0:00:05]} 15. Rb1 {[%emt 0:01:37]} Bf6 {[%emt 0:13:52]} 16. Ng4 {[%emt 0:11:40]} Bg7 {[%emt 0:01:17]} 17. Be2 {[%emt 0:00:13]} f6 {[%emt 0:23:13]} 18. Ne3 {[%emt 0:01:48]} b6 {[%emt 0:13:52]} 19. Bf3 {[%emt 0:10:38]} Rb8 {[%emt 0:00:05]} 20. Bd6 {[%emt 0:03:04]} Rb7 {[%emt 0:00:06]} 21. Bxb7 {[%emt 0:00:56]} Bxb7 {[%emt 0:00:05]} 22. a4 {[%emt 0:00:09]} Kf7 {[%emt 0:02:58]} 23. a5 {[%emt 0:02:36]} Be4 {[%emt 0:00:37]} 24. Rb2 {[%emt 0:01:43]} bxa5 {[%emt 0:00:47]} 25. Bxe7 {[%emt 0:00:54]} Kxe7 {[%emt 0:00:06]} 26. Ra2 {[%emt 0:00:32]} Rb8 {[%emt 0:00:48]} 27. O-O {[%emt 0:00:39]} Bh6 {[%emt 0:03:40]} 28. Ng4 {[%emt 0:04:46]} Bf4 {[%emt 0:00:06]} 29. Rxa5 {[%emt 0:00:14]} Rb7 {[%emt 0:00:06]} 30. Rfa1 {[%emt 0:01:08]} Bb8 {[%emt 0:00:07]} 31. Ne3 {[%emt 0:01:55]} Rb3 {[%emt 0:02:53]} 32. c4 {[%emt 0:04:00]} f5 {[%emt 0:00:52]} 33. Re1 {[%emt 0:01:23]} Kf6 {[%emt 0:01:06]} 34. Ra6 {[%emt 0:00:36]} Kf7 {[%emt 0:02:08]} 35. Nf1 {[%emt 0:04:10]} Rb6 {[%emt 0:00:36]} 36. Rxb6 {[%emt 0:00:24]} axb6 {[%emt 0:00:05]} 37. Nd2 {[%emt 0:00:21]} Bc6 {[%emt 0:00:31]} 38. Ra1 {[%emt 0:01:11]} Ke7 {[%emt 0:00:50]} 39. Ra6 {[%emt 0:01:14]} Kd7 {[%emt 0:00:34]} 40. Rxb6 {[%emt 0:01:17]} Ba7 {[%emt 0:00:27]} 41. Rb3 {[%emt 0:31:26]} f4 {[%emt 0:24:41]} 42. Ra3 {[%emt 0:00:00]} Bb8 {[%emt 0:02:34]} 43. Nb3 {[%emt 0:00:00]} Ke7 {[%emt 0:02:51]} 44. Ra6 {[%emt 0:00:00]} Be8 {[%emt 0:01:39]} 45. Nc5 {[%emt 0:00:00]} Bf7 {[%emt 0:00:24]} 46. Ra8 {[%emt 0:00:00]} Bd6 {[%emt 0:00:31]} 47. Ne4 {[%emt 0:00:00]} Bc7 {[%emt 0:00:42]} 48. Ra7 {[%emt 0:00:00]} Kd8 {[%emt 0:00:08]} 49. Ng5 {[%emt 0:00:00]} 1-0

[Event "44th Chess Olympiad Open 2022"]
[Site "Chennai"]
[Date "2022.08.09"]
[Round "11.31"]
[White "Rohl Montes, Juan Armando"]
[Black "Cardoso Cardoso, Jose Gabriel"]
[Result "1/2-1/2"]
[ECO "B22"]
[WhiteElo "2382"]
[BlackElo "2493"]
[Annotator "RC"]
[PlyCount "126"]
[EventDate "2022.07.29"]
[EventType "team-tourn"]
[EventCountry "IND"]
[SourceTitle "playchess.com"]
[Source "ChessBase"]
[SourceQuality "1"]
[WhiteTeam "Venezuela"]
[BlackTeam "Colombia"]
[WhiteTeamCountry "VEN"]
[BlackTeamCountry "COL"]
[TimeControl "40/5400+30:1800+30"]

1. e4 {[%emt 0:00:42]} c5 {[%emt 0:00:09]} 2. c3 {[%emt 0:01:00]} Nf6 {[%emt 0:00:08]} 3. e5 {[%emt 0:01:04]} Nd5 {[%emt 0:00:05]} 4. Nf3 {[%emt 0:02:12]} e6 {[%emt 0:00:08]} 5. d4 {[%emt 0:02:20]} cxd4 {[%emt 0:00:05]} 6. cxd4 {[%emt 0:00:07]} d6 {[%emt 0:00:06]} 7. Bc4 {[%emt 0:02:03]} Nb6 {[%emt 0:05:32]} 8. Bb3 {[%emt 0:02:59]} dxe5 {[%emt 0:03:36]} 9. Nxe5 {[%emt 0:00:56]} Nc6 {[%emt 0:00:16]} 10. Nf3 {[%emt 0:01:50]} Bb4+ {[%emt 0:08:03]} 11. Nc3 {[%emt 0:04:02]} Nd5 {[%emt 0:02:19]} 12. Qd3 {[%emt 0:24:54]} Na5 {[%emt 0:05:38]} 13. Bxd5 {[%emt 0:11:22]} Qxd5 {[%emt 0:07:26]} 14. Bd2 {[%emt 0:05:44]} Qc4 {[%emt 0:06:54]} 15. Ne5 {[%emt 0:01:21]} Qxd3 {[%emt 0:00:36]} 16. Nxd3 {[%emt 0:00:46]} Nc6 {[%emt 0:03:55]} 17. Nxb4 {[%emt 0:01:43]} Nxb4 {[%emt 0:00:03]} 18. Nb5 {[%emt 0:00:11]} Nd5 {[%emt 0:04:13]} 19. Rc1 {[%emt 0:01:03]} Kd7 {[%emt 0:01:31]} 20. a3 {[%emt 0:07:53]} b6 {[%emt 0:00:20]} 21. Nc3 {[%emt 0:00:27]} Ne7 {[%emt 0:03:05]} 22. f3 {[%emt 0:07:40]} Bb7 {[%emt 0:04:32]} 23. Kf2 {[%emt 0:00:20]} Bd5 {[%emt 0:01:26]} 24. Ne2 {[%emt 0:02:54]} Nc6 {[%emt 0:05:57]} 25. Rc2 {[%emt 0:02:09]} Rac8 {[%emt 0:01:22]} 26. Rhc1 {[%emt 0:01:17]} a5 {[%emt 0:00:20]} 27. Be3 {[%emt 0:03:23]} Ne7 {[%emt 0:05:17]} 28. Nf4 {[%emt 0:06:31]} Rxc2+ {[%emt 0:01:06]} 29. Rxc2 {[%emt 0:00:06]} Nf5 {[%emt 0:00:27]} 30. Nh5 {[%emt 0:00:56]} Bc6 {[%emt 0:07:09]} 31. g4 {[%emt 0:00:59]} Nh4 {[%emt 0:03:11]} 32. Nxg7 {[%emt 0:01:25]} Bxf3 {[%emt 0:07:05]} 33. Nh5 {[%emt 0:00:14]} Bc6 {[%emt 0:03:46]} 34. Nf6+ {[%emt 0:01:27]} Kc7 {[%emt 0:00:05]} 35. d5 {[%emt 0:00:29]} exd5 {[%emt 0:00:11]} 36. Nxd5+ {[%emt 0:00:03]} Kb7 {[%emt 0:00:06]} 37. Nxb6 {[%emt 0:00:06]} Be4 {[%emt 0:02:40]} 38. Rc4 {[%emt 0:00:18]} Re8 {[%emt 0:00:02]} 39. Na4 {[%emt 0:01:12]} Bc6 {[%emt 0:01:53]} 40. Nc5+ {[%emt 0:00:53]} Ka8 {[%emt 0:00:19]} 41. Na6 {[%emt 0:31:27]} Kb7 {[%emt 0:30:07]} 42. Nc5+ {[%emt 0:01:08]} Ka8 {[%emt 0:00:02]} 43. Nb3 {[%emt 0:00:00]} Be4 {[%emt 0:00:00]} 44. Nxa5 {[%emt 0:00:00]} f5 {[%emt 0:00:00]} 45. gxf5 {[%emt 0:00:00]} Nxf5 {[%emt 0:00:03]} 46. Rc7 {[%emt 0:00:00]} Rg8 {[%emt 0:00:00]} 47. Bb6 {[%emt 0:00:00]} Nd6 {[%emt 0:00:00]} 48. Ra7+ {[%emt 0:00:59]} Kb8 {[%emt 0:00:00]} 49. Re7 {[%emt 0:00:00]} Rg2+ {[%emt 0:00:00]} 50. Ke1 {[%emt 0:00:12]} Rc2 {[%emt 0:00:00]} 51. b4 {[%emt 0:01:15]} Bf3 {[%emt 0:00:00]} 52. Rxh7 {[%emt 0:01:49]} Kc8 {[%emt 0:00:00]} 53. Rc7+ {[%emt 0:02:23]} Rxc7 {[%emt 0:00:00]} 54. Bxc7 {[%emt 0:00:01]} Kxc7 {[%emt 0:00:00]} 55. Nb3 {[%emt 0:00:17]} Kb6 {[%emt 0:00:00]} 56. Nd4 {[%emt 0:00:19]} Be4 {[%emt 0:00:00]} 57. a4 {[%emt 0:00:26]} Nc4 {[%emt 0:00:00]} 58. h4 {[%emt 0:00:33]} Ka6 {[%emt 0:00:00]} 59. a5 {[%emt 0:01:07]} Ne3 {[%emt 0:00:00]} 60. Kd2 {[%emt 0:00:34]} Nd5 {[%emt 0:00:00]} 61. Ne6 {[%emt 0:00:46]} Bf3 {[%emt 0:00:00]} 62. Nc5+ {[%emt 0:00:23]} Kb5 {[%emt 0:00:00]} 63. Nd3 {[%emt 0:00:28]} Bh5 {[%emt 0:00:00]} 1/2-1/2

[Event "44th Chess Olympiad Open 2022"]
[Site "Chennai"]
[Date "2022.08.09"]
[Round "11.31"]
[White "Castro Torres, Jose Luis"]
[Black "Valderrama Quiceno, Esteban Alb"]
[Result "1-0"]
[ECO "B07"]
[WhiteElo "2326"]
[BlackElo "2436"]
[Annotator "RC"]
[PlyCount "64"]
[EventDate "2022.07.29"]
[EventType "team-tourn"]
[EventCountry "IND"]
[SourceTitle "playchess.com"]
[Source "ChessBase"]
[SourceQuality "1"]
[WhiteTeam "Venezuela"]
[BlackTeam "Colombia"]
[WhiteTeamCountry "VEN"]
[BlackTeamCountry "COL"]
[TimeControl "40/5400+30:1800+30"]

1. e4 {[%emt 0:00:03]} d6 {[%emt 0:01:18]} 2. d4 {[%emt 0:00:08]} Nf6 {[%emt 0:00:09]} 3. Nc3 {[%emt 0:00:15]} g6 {[%emt 0:00:24]} 4. f3 {[%emt 0:05:52]} c6 {[%emt 0:01:35]} 5. Be3 {[%emt 0:01:42]} Qb6 {[%emt 0:04:54]} 6. Qc1 {[%emt 0:00:35]} Bg7 {[%emt 0:02:24]} 7. Bd3 {[%emt 0:03:46]} Qc7 {[%emt 0:01:42]} 8. Nge2 {[%emt 0:10:00]} b5 {[%emt 0:07:57]} 9. Bh6 {[%emt 0:24:00]} O-O {[%emt 0:21:04]} 10. h4 {[%emt 0:00:00]} Re8 {[%emt 0:01:55]} 11. Bxg7 {[%emt 0:00:00]} Kxg7 {[%emt 0:00:05]} 12. h5 {[%emt 0:00:36]} e5 {[%emt 0:01:00]} 13. dxe5 {[%emt 0:05:50]} dxe5 {[%emt 0:00:20]} 14. Ng3 {[%emt 0:04:25]} Qe7 {[%emt 0:07:12]} 15. Qe3 {[%emt 0:06:03]} Be6 {[%emt 0:04:43]} 16. O-O-O {[%emt 0:03:33]} Nbd7 {[%emt 0:00:11]} 17. hxg6 {[%emt 0:10:57]} fxg6 {[%emt 0:00:13]} 18. Nf5+ {[%emt 0:06:46]} gxf5 {[%emt 0:04:53]} 19. exf5 {[%emt 0:00:01]} Bg8 {[%emt 0:10:00]} 20. g4 {[%emt 0:01:40]} b4 {[%emt 0:01:49]} 21. Ne4 {[%emt 0:01:21]} Kh8 {[%emt 0:01:49]} 22. Qh6 {[%emt 0:07:55]} Qf8 {[%emt 0:12:58]} 23. Qh4 {[%emt 0:03:01]} Nd5 {[%emt 0:01:09]} 24. g5 {[%emt 0:01:16]} Rad8 {[%emt 0:05:18]} 25. f6 {[%emt 0:01:04]} Nf4 {[%emt 0:02:02]} 26. Nd6 {[%emt 0:01:10]} Nxd3+ {[%emt 0:00:21]} 27. Rxd3 {[%emt 0:00:46]} e4 {[%emt 0:05:45]} 28. Nxe8 {[%emt 0:00:12]} Qxe8 {[%emt 0:00:45]} 29. fxe4 {[%emt 0:01:06]} Ne5 {[%emt 0:00:34]} 30. Rxd8 {[%emt 0:00:25]} Qxd8 {[%emt 0:00:00]} 31. Qh6 {[%emt 0:00:29]} Qd7 {[%emt 0:00:57]} 32. g6 {[%emt 0:00:09]} Qd5 {[%emt 0:00:48]} 1-0